Cogmind - Beta 13 @@@ ROGUE MODE // 2024.04.11 @ 09:21:43 Player: m1m1c Result: Destroyed by Y-54 Guardian with Flak Gun Performance ------------- Evolutions (3) 1500 Regions Visited (6) 1200 Robots Destroyed (34) 170 Value Destroyed (869) 869 Prototype IDs (1) 20 Alien Tech Used (0) 0 Bonus (0) 0 TOTAL SCORE: 3759 Bonus ------- None Cogmind --------- Core Integrity 0/700 Matter 39/300 Energy 100/100 System Corruption 0% Temperature Cool (18) Movement Core (450) Ox8 Location -7/Factory Parts ------- > --- POWER (1) -------- (None) > --- PROPULSION (5) --- Titanium Leg Titanium Leg Titanium Leg > --- UTILITY (5) ------ Small Storage Unit Improved Signal Interpreter Hardened Heavy Armor Plating > --- WEAPON (2) ------- (None) > --- INVENTORY (8) ---- Large Storage Unit Shotgun Assault Cannon Peak State ------------ > --- POWER ------------ Light Nuclear Core > --- PROPULSION ------- Xenon Bombardment Thruster Xenon Bombardment Thruster Xenon Bombardment Thruster Xenon Bombardment Thruster > --- UTILITY ---------- Advanced Heat Sink Small Storage Unit High-capacity Battery Improved Signal Interpreter > --- WEAPON ----------- Heavy Laser Heavy Missile Launcher > --- INVENTORY -------- Light Ion Engine Carbon-fiber Leg Field Laser Shotgun Assault Cannon Heavy Missile Launcher [Rating: 38] Favorites ----------- Power Light Nuclear Core Engine Ion Engine Power Core Light Nuclear Core Propulsion Aluminum Leg Leg Aluminum Leg Flight Unit Xenon Bombardment Thruster Utility Small Storage Unit Device Sensor Array Storage Small Storage Unit Processor Improved Signal Interpreter Protection Hardened Heavy Armor Plating Weapon EM Pulse Gun Energy Gun EM Pulse Gun Energy Cannon Beam Cannon Ballistic Gun Light Assault Rifle Ballistic Cannon Assault Cannon Launcher Grenade Launcher Build | -11 -10 -10 -10 -9 -8 -7 ------- Run | Yrd Mat Min Exi Min Mat Fac Slots Evolved 6 | . . . . . 4 2 Power . | . . . . . . . Propulsion 3 | . . . . . 2 1 Utility 3 | . . . . . 2 1 Weapon . | . . . . . . . Parts Attached 55 | 6 2 . 3 4 21 19 Power 4 | 1 1 . . . 2 . Engine 2 | 1 . . . . 1 . Core 2 | . 1 . . . 1 . Reactor . | . . . . . . . Propulsion 15 | 2 . . . 1 6 6 Treads . | . . . . . . . Leg 10 | 2 . . . 1 2 5 Wheel . | . . . . . . . Hover . | . . . . . . . Flight 5 | . . . . . 4 1 Utility 21 | 1 1 . 3 2 6 8 Device 6 | . 1 . 1 2 1 1 Storage 11 | 1 . . 2 . 3 5 Processor 3 | . . . . . 2 1 Hackware . | . . . . . . . Protection 1 | . . . . . . 1 Artifact . | . . . . . . . Weapon 15 | 2 . . . 1 7 5 Energy Gun 5 | 2 . . . . 1 2 Energy Cannon 1 | . . . . . 1 . Ballistic Gun 2 | . . . . . 2 . Ballistic Cannon 2 | . . . . . 1 1 Launcher 5 | . . . . 1 2 2 Special Weapon . | . . . . . . . Impact Weapon . | . . . . . . . Slashing Weapon . | . . . . . . . Piercing Weapon . | . . . . . . . Special Melee Weapon . | . . . . . . . Unidentified Prototypes 1 | . . . . 1 . . Parts Lost 23 | . . 1 . 1 9 12 Power 2 | . . . . . 1 1 Propulsion 5 | . . . . . 2 3 Utility 6 | . . 1 . . 1 4 Weapon 10 | . . . . 1 5 4 Highest Loss Streak 10 | . . 1 . 1 7 10 To Critical Strikes . | . . . . . . . Average Slot Usage (%) 86 | . 90 92 96 99 76 61 Engine 2 | . 11 . . . 4 . Core 8 | . 2 14 14 14 2 5 Leg 21 | . 28 28 28 28 10 8 Flight 3 | . . . . . 7 11 Device 9 | . 5 7 10 14 8 5 Storage 14 | . 14 14 14 14 18 12 Processor 3 | . . . . . 9 8 Energy Gun 16 | . 28 28 28 14 4 1 Launcher 4 | . . . . 13 4 4 Naked Turns . | . . . . . . . Heaviest Build 54 | 14 15 15 54 16 37 26 Greatest Support 51 | 20 20 20 20 20 25 51 Greatest Overweight (x) 8 | 1 . . 2 . 4 8 Average Overweight (x) . | . . . . . . . Largest Inventory Capacity 20 | 8 8 8 20 8 15 15 Average Capacity 7 | 7 8 8 8 8 8 7 Most Carried 8 | . 5 5 6 7 8 8 Average Carried 4 | . 2 5 5 4 3 5 Final Capacity 8 | 8 8 8 8 8 8 8 Final Carried 8 | . 5 5 5 5 8 3 Class Distribution -------------------- 74% | Mutant 13% | Scavenger-Mutant 11% | Sprinter Dominant Class ---------------- Mutant | -10/Materials Mutant | -10/Mines Mutant | -10/Exiles Mutant | -9/Mines Scavenger-Mutant | -8/Materials Mutant | -7/Factory Resources | -11 -10 -10 -10 -9 -8 -7 ----------- Run | Yrd Mat Min Exi Min Mat Fac Matter Collected 702 | 217 61 . 20 10 180 214 Remotely . | . . . . . . . Salvage Created 726 | . 312 . . 42 372 . Parts 59 | . 22 . . 6 28 3 Haulers Intercepted . | . . . . . . . Recyclers Shooed . | . . . . . . . Parts Field Recycled . | . . . . . . . Retrieved Matter . | . . . . . . . Parts Self-Destructed . | . . . . . . . Prevented . | . . . . . . . Kills | -11 -10 -10 -10 -9 -8 -7 ------- Run | Yrd Mat Min Exi Min Mat Fac Combat Hostiles Destroyed 22 | . 3 . . 3 16 . Guns 6 | . . . . 3 3 . Cannons 3 | . . . . . 3 . AOE 13 | . 3 . . . 10 . Classes Destroyed 6 | . 4 . . 1 1 . Builder 3 | . 1 . . . 1 1 Tunneler 2 | . . . . . 2 . Recycler 1 | . 1 . . . . . Watcher 6 | . 3 . . . 3 . Swarmer 9 | . . . . 3 6 . Grunt 13 | . 3 . . . 10 . Best Kill Streak 7 | . 3 . . 3 7 1 Combat Bots Only 6 | . 2 . . 3 6 . Max Kills in Single Turn 3 | . 3 . . 2 3 1 Gunslinging . | . . . . . . . Exploded 2 | . 2 . . . 2 . Melee . | . . . . . . . Uniques/NPCs Destroyed . | . . . . . . . Combat | -11 -10 -10 -10 -9 -8 -7 -------- Run | Yrd Mat Min Exi Min Mat Fac Hostile Shots Fired 534 | . 6 10 . 11 130 377 Missed 233 | . 4 2 . 3 51 173 Damage Taken 3219 | . 25 214 . 71 1118 1791 Core 1103 | . 13 60 . 9 319 702 Absorbed by Shields . | . . . . . . . Core Remaining (%) 69 | 100 . . . 67 42 . Volleys Fired 68 | . 9 . . 3 50 6 Largest 2 | . 2 . . 2 2 2 Hottest 113 | . 80 . . 80 113 108 Shots Fired 105 | . 18 . . 4 74 9 Gun 51 | . 18 . . 4 24 5 Cannon 27 | . . . . . 27 . Launcher 27 | . . . . . 23 4 Special . | . . . . . . . Kinetic 14 | . . . . . 14 . Thermal 38 | . . . . . 33 5 Explosive 27 | . . . . . 23 4 Electromagnetic 26 | . 18 . . 4 4 . Robot Hit Streak 9 | . 4 . . 1 9 3 Robot Miss Streak 3 | . 2 . . 1 3 1 Penetration Max . | . . . . . . . Secondary Targets . | . . . . . . . Shots Hit Robots 56 | . 12 . . 2 36 6 Core Hits 58 | 1 10 . . 3 40 4 Critical Kills . | . . . . . . . Critical Parts Destroyed . | . . . . . . . Critical Strikes . | . . . . . . . Melee Attacks . | . . . . . . . Impact . | . . . . . . . Slashing . | . . . . . . . Piercing . | . . . . . . . Sneak Attacks . | . . . . . . . Combat Hostiles . | . . . . . . . Follow-up Attacks . | . . . . . . . Damage Inflicted 2805 | 11 375 . . 40 2172 207 Guns 429 | . 191 . . 34 149 55 Cannons 275 | . . . . . 275 . Explosions 2061 | . 176 . . . 1748 137 Melee . | . . . . . . . Ramming 40 | 11 8 . . 6 . 15 Kinetic 110 | . . . . . 110 . Thermal 517 | . 176 . . . 286 55 Explosive 1885 | . . . . . 1748 137 Electromagnetic 253 | . 191 . . 34 28 . Impact . | . . . . . . . Slashing . | . . . . . . . Piercing . | . . . . . . . Highest Corruption . | . . . . . . . Average Corruption . | . . . . . . . Corruption Purged . | . . . . . . . Corruption Blocked . | . . . . . . . Overload Shots . | . . . . . . . Overflow Damage 18 | . . . . . 18 . Projectiles . | . . . . . . . Explosions 18 | . . . . . 18 . Melee . | . . . . . . . Knockbacks . | . . . . . . . Impact . | . . . . . . . Kinetic . | . . . . . . . Secondary . | . . . . . . . Self-Inflicted Damage 27 | . . . . . 27 . Shots 1 | . . . . . 1 . Rammed 1 | . . . . . . 1 Targets Rammed 10 | 1 1 . . 5 . 3 Kicked 9 | 1 1 . . 5 . 2 Crushed . | . . . . . . . Highest Temperature 186 | . 99 . . 32 186 8 Average Temperature 66 | . 35 . . 22 78 8 Received Heat Transfer 1017 | . 15 . . . 594 408 Siege Activations . | . . . . . . . Robots Corrupted . | . . . . . . . Combat Hostiles . | . . . . . . . Parts Fried . | . . . . . . . Impact Corruptions . | . . . . . . . Robots Melted . | . . . . . . . Combat Hostiles . | . . . . . . . Parts Melted 1 | . . . . . 1 . Heat Transferred 903 | . 200 . . . 592 111 Parts Sabotaged . | . . . . . . . Parts Stolen . | . . . . . . . Parts Stripped . | . . . . . . . Power Chain Reactions 2 | . 2 . . . . . Alert | -11 -10 -10 -10 -9 -8 -7 ------- Run | Yrd Mat Min Exi Min Mat Fac Peak Influence 371 | . 171 66 . 60 371 311 Initial 150 | . . 66 . . . 150 Average 147 | . 72 46 . 55 227 227 Maximum Alert Level 1 | . . . . . 1 1 Low Security (%) 60 | 100 100 100 . 100 24 25 Level 1 39 | . . . . . 75 74 Level 2 . | . . . . . . . Level 3 . | . . . . . . . Level 4 . | . . . . . . . Level 5 . | . . . . . . . High Security . | . . . . . . . Max Security . | . . . . . . . Squads Dispatched 2 | . . . . . 1 1 Investigation . | . . . . . . . Extermination . | . . . . . . . Reinforcement 2 | . . . . . 1 1 Assault . | . . . . . . . Garrison . | . . . . . . . Intercept . | . . . . . . . Searches Triggered . | . . . . . . . Construction Impeded . | . . . . . . . Haulers Reinforced . | . . . . . . . Active Scanning Responses . | . . . . . . . Cargo Convoy Interrupts . | . . . . . . . Stealth | -11 -10 -10 -10 -9 -8 -7 --------- Run | Yrd Mat Min Exi Min Mat Fac Distress Signals 3 | . 2 . . . 1 . Communications Jammed . | . . . . . . . Distress Signals . | . . . . . . . Times Spotted 59 | . 7 17 . 4 22 9 Peak Tracking Total 19 | . 3 19 . 3 7 8 Tactical Retreats 3 | . . . . . . 3 Traps | -11 -10 -10 -10 -9 -8 -7 ------- Run | Yrd Mat Min Exi Min Mat Fac Traps Triggered 1 | . . . . . . 1 Indirectly . | . . . . . . . Trap Hack Attempts . | . . . . . . . Triggered . | . . . . . . . Disarmed . | . . . . . . . Reprogrammed . | . . . . . . . Reused . | . . . . . . . Traps Extracted . | . . . . . . . Installed . | . . . . . . . Triggered . | . . . . . . . Machines | -11 -10 -10 -10 -9 -8 -7 ---------- Run | Yrd Mat Min Exi Min Mat Fac Machines Disabled 4 | . 1 . . . 2 1 Max in Single Turn 1 | . 1 . . . 1 1 Machines Repaired . | . . . . . . . Machines Dismantled . | . . . . . . . Machines Sabotaged . | . . . . . . . Overloaded Fab Kills . | . . . . . . . Hacking | -11 -10 -10 -10 -9 -8 -7 --------- Run | Yrd Mat Min Exi Min Mat Fac Machines Accessed 7 | . 2 . 4 . . 1 Terminals 3 | . 2 . . . . 1 Fabricators . | . . . . . . . Repair Stations . | . . . . . . . Recycling Units . | . . . . . . . Scanalyzers . | . . . . . . . Garrison Access . | . . . . . . . Total Hacks 43 | . 5 . 37 . . 1 Successful 41 | . 3 . 37 . . 1 Failed 2 | . 2 . . . . . Catastrophic . | . . . . . . . Database Lockouts . | . . . . . . . Manual 1 | . . . 1 . . . Terminals 6 | . 5 . . . . 1 Fabricators . | . . . . . . . Repair Stations . | . . . . . . . Recycling Units . | . . . . . . . Scanalyzers . | . . . . . . . Garrison Access . | . . . . . . . Terminal Hacks 41 | . 3 . 37 . . 1 Record 37 | . . . 37 . . . Open DSF 1 | . . . . . . 1 Surveillance Status 1 | . 1 . . . . . Transport Status 1 | . 1 . . . . . Registered Components 1 | . 1 . . . . . Fabricator Hacks . | . . . . . . . Repair Station Hacks . | . . . . . . . Recycling Unit Hacks . | . . . . . . . Scanalyzer . | . . . . . . . Garrison Access Hacks . | . . . . . . . Unauthorized Hacks . | . . . . . . . Terminals . | . . . . . . . Fabricators . | . . . . . . . Repair Stations . | . . . . . . . Recycling Units . | . . . . . . . Scanalyzers . | . . . . . . . Garrison Access . | . . . . . . . Data Cores Recovered . | . . . . . . . Used . | . . . . . . . Hacking Detections 1 | . 1 . . . . . Full Trace Events . | . . . . . . . Feedback Events . | . . . . . . . Feedback Blocked . | . . . . . . . Robot Schematics Acquired . | . . . . . . . Robots Built . | . . . . . . . Authchips . | . . . . . . . Time . | . . . . . . . Total Robot Build Rating . | . . . . . . . Part Schematics Acquired . | . . . . . . . Parts Built . | . . . . . . . Authchips . | . . . . . . . Time . | . . . . . . . Total Part Build Rating . | . . . . . . . Parts Repaired . | . . . . . . . Time . | . . . . . . . Parts Recycled . | . . . . . . . Recycled Matter . | . . . . . . . Retrieved Matter . | . . . . . . . Retrieved Components . | . . . . . . . Parts Scanalyzed . | . . . . . . . Part Schematics Acquired . | . . . . . . . Parts Damaged . | . . . . . . . Bothacking | -11 -10 -10 -10 -9 -8 -7 ------------ Run | Yrd Mat Min Exi Min Mat Fac Used RIF Installer . | . . . . . . . Robots Hacked . | . . . . . . . Non-combat . | . . . . . . . Combat . | . . . . . . . Robot Hacks Applied . | . . . . . . . Relay Couplers Released . | . . . . . . . Fabnet Peak Effective % . | . . . . . . . Robots Rewired . | . . . . . . . Allies Hacked . | . . . . . . . Hacks Repelled . | . . . . . . . Allies | -11 -10 -10 -10 -9 -8 -7 -------- Run | Yrd Mat Min Exi Min Mat Fac Total Allies 2 | . . 2 . . . . Largest Group 2 | . . 2 . . . . Highest-Rated Group 45 | . . 45 . . . . Highest-Rated Ally 31 | . . 31 . . . . Total Orders . | . . . . . . . Ally Attacks 5 | . . 5 . . . . Total Damage 108 | . . 108 . . . . Kills 1 | . . 1 . . . . Allies Corrupted . | . . . . . . . Allies Melted . | . . . . . . . Intel | -11 -10 -10 -10 -9 -8 -7 ------- Run | Yrd Mat Min Exi Min Mat Fac Robot Analysis Total . | . . . . . . . Derelict Logs Recovered 1 | . . . . 1 . . Drone Launches . | . . . . . . . Drone Recoveries . | . . . . . . . Exploration | -11 -10 -10 -10 -9 -8 -7 ------------- Run | Yrd Mat Min Exi Min Mat Fac Turns Passed 2564 | 68 324 21 780 429 500 442 Spaces Moved 2386 | 48 240 18 636 341 400 703 Core 116 | 5 . . . . 23 88 Treads . | . . . . . . . Legs 1570 | 43 240 18 636 341 157 135 Wheels . | . . . . . . . Hover . | . . . . . . . Flight 700 | . . . . . 220 480 Fastest Speed 31 | 50 120 120 120 120 31 31 Average Speed 95 | 122 120 120 120 120 84 55 Slowest Speed 450 | 190 120 120 260 120 300 450 Overloaded Moves . | . . . . . . . Propulsion Burnouts . | . . . . . . . Robots Hopped 5 | . . . . . 3 2 Cave-ins Triggered . | . . . . . . . Exploration Rate (%) 32 | 4 38 6 91 57 21 8 Regions Visited 6 Branch Regions 3 Pre-discovered Areas 1 | . . . 1 . . . Known Exits Taken 1 | . . . . . 1 . Unknown Exits Taken 5 | 1 1 1 1 1 . . Scrap Searched 1 | . . . . 1 . . Spaces Dug 7 | . . . . . 7 . Terrain Destroyed 232 | . 6 . . . 173 53 Melee . | . . . . . . . Projectile 1 | . . . . . 1 . AOE 231 | . 6 . . . 172 53 Terrain Rammed . | . . . . . . . Walls Destroyed . | . . . . . . . Machines Disabled . | . . . . . . . Actions | -11 -10 -10 -10 -9 -8 -7 --------- Run | Yrd Mat Min Exi Min Mat Fac Total 2556 | 54 257 17 651 357 482 738 Wait . | . . . . . . . Move 2371 | 47 239 17 635 341 393 699 Hop 5 | . . . . . 3 2 Pick Up 18 | . 5 . 1 2 8 2 Fast Attach 25 | 6 2 . 2 . 9 6 Attach 18 | . . . 1 3 6 8 Detach 7 | . . . . 2 3 2 Swap 12 | . . . . 1 6 5 Drop 13 | . 1 . 2 1 4 5 Fire 68 | . 9 . . 3 50 6 Melee . | . . . . . . . Ram 1 | . . . . . . 1 Kick 8 | 1 1 . . 4 . 2 Crush . | . . . . . . . Escape Stasis . | . . . . . . . Rewire 10 | . . . 10 . . . Trap . | . . . . . . . Miscellaneous . | . . . . . . . Route ------- -11/Scrapyard -10/Materials -10/Mines -10/Exiles (discovered 2 exits: [*Min x2]) -9/Mines -8/Materials -7/Factory (discovered 1 exit: [*Fac]) History --------- Turn | Location | Event 38 | -11/Scrapyard | Discovered new exit (range 14) 69 | -11/Scrapyard | Entered Materials 179 | -10/Materials | Discovered new exit (range 7) 308 | -10/Materials | Build established: Mutant 393 | -10/Materials | Entered Mines 394 | -10/Mines | Assembled infested the area 405 | -10/Mines | Deemed a non-threat by the Exiles lab entrance 407 | -10/Mines | Discovered new exit (range 5) 414 | -10/Mines | Entered Exiles 444 | -10/Exiles | Discovered new exit (range 15) 476 | -10/Exiles | Met 8R-AWN 506 | -10/Exiles | Met EX-HEX 644 | -10/Exiles | Met EX-DEC 674 | -10/Exiles | Visited The Gauntlet 836 | -10/Exiles | Learned location of Zion (-7) 930 | -10/Exiles | Met EX-BIN 1170 | -10/Exiles | Discovered new exit (range 15) 1194 | -10/Exiles | Entered Mines 1299 | -9/Mines | Received a Rocket Launcher from a helpful Derelict 1361 | -9/Mines | Learned Materials security intel 1411 | -9/Mines | Found a damaged Exp. Sensor Array with a note attached 1413 | -9/Mines | Found Prototype Device 1415 | -9/Mines | Identified Exp. Sensor Array 1464 | -9/Mines | Discovered new exit (range 4) 1623 | -9/Mines | Entered Materials 1623 | -8/Materials | Evolved 4 slots: Propulsion x2, Utility x2 1752 | -8/Materials | Core integrity fell below 50% 1774 | -8/Materials | Lost 7 parts (1p2n4w) 2072 | -8/Materials | Discovered new exit (range 15) 2123 | -8/Materials | Identified exit to Factory 2123 | -8/Materials | Entered Factory 2123 | -7/Factory | Evolved 2 slots: Propulsion x1, Utility x1 2463 | -7/Factory | Core integrity fell below 50% 2477 | -7/Factory | Core integrity fell below 20% 2498 | -7/Factory | Discovered new exit (range 14) 2512 | -7/Factory | Lost 10 parts (1p2n4u3w) 2565 | -7/Factory | Destroyed by Y-54 Guardian with Flak Gun Last Messages --------------- An explosion rips through the floor. Carbon-fiber Leg destroyed. C-30 ARC bursts open, deploying its payload. S-27 Virus unfolds itself. Imp. Carbon-fiber Leg destroyed. Lgt. Nuclear Core destroyed. Hvy. Missile Launcher destroyed. Adv. Heat Sink destroyed. Sml. Storage Unit destroyed. M-13 Machinist repairs Y-54 Guardian. Field Laser destroyed. ALERT: Hostiles spotted, dispatching reinforcements to Terminal F003. Imp. Targeting Computer destroyed. Hcp. Battery destroyed. EXIT=FOUND Acquired Sml. Storage Unit. Acquired Titanium Leg. Acquired Hrd. Heavy Armor Plating. Slammed into Y-54 Guardian. Map ----- +----------------------------------------------------+ | ?????????????????????????????????????????????????? | | ?????????????????????????????????????????????????? | | ?????????????????????????????????????????????????? | | ?????????????????????????????????????????????????? | | ?????????????????????????????????????????????????? | | ?????????????????????????????????????????????????? | | ?????????????????????????????????????????????????? | | ?????????????????????????????????????????????????? | | ?????????????????????????????????????????????????? | | ?????????????????????????????????????????????????? | | ?????????????????????????????????????????????????? | | ?????????????????????????????????????????????????? | | ?????????????????????????????????????????????????? | | ?????????????????????????????????????????????????? | | ?????????????????????????????????????????????????? | | ?????????????????????????????????????????????????? | | ?????????????????????????????????????????????????? | | ?????????????????????????????????????????????????? | | ?????????????????????????????????????????????????? | | ?????????????????????????????????????????????????? | | ?????????????????????????????????????????????????? | | ?????????????????????????????????????????????????? | | ???????????????????#############?????????????????? | | ???????????????????# ! # #?????????????????? | | ???????????+####+### # #?????????????????? | | ????????# t@Y < +?????????????????? | | ??????????????###### # #?????????????????? | | ???????????????????# Y # #?????????????????? | | ???????????????????###+##### ###?????????????????? | | ???????????????????# ## #?????? ????????????? | | ???????????????????# ## #????? ????????????? | | ???????????????????# ## #????? ????????????? | | ???????????????????# ## #?????# #???????????? | | ???????????????????# ## #?????# #####???????? | | ???????????????????# ! ## #?????# ????????? | | ???????????????????######### #?????# #?????????? | | ???????????????????????????# #?????# #?????????? | | ???????????????????????????# ####### ####??????? | | ???????????????????????????# #??????? | | ???????????????????????????# #??????? | | ???????????????????????????# #??????? | | ???????????????????????????#### #???#### | | ??????????????????????????????# #???# | | ??????????????????????????????# ##### | | ??????????????????????????????# + | | ??????????????????????????????# ######/##### | | ??????????????????????????????# #????# ## | | ??????????????????????????????#### #????# ## | | ?????????????????????????????????# #????# ## ] | | ?????????????????????????????????# ????# ## | +----------------------------------------------------+ Best States ------------- Heat Dissipation 53 Energy Generation 14 Energy Capacity 410 Matter Stores 440 Matter Capacity 450 Sight Range 16 Robot Scan Range 14 Terrain Scan Density 10 Armor Coverage 600 Evasion (%) 63 Targeting Accuracy 6 Item Schematics ----------------- None Robot Schematics ------------------ None Fabricated ------------ Nothing Alien Tech Used ----------------- None Achievements -------------- I Survived The Infestation Librarian Challenges ------------ None Game ------ Seed HybridMomentumInverter Manual? 0 Play Time 00:31:42 Cumulative 8.5 hours Start 2024.04.11 @ 08:45:06 End 2024.04.11 @ 09:21:43 Sessions 1 Manual Loads 0 Difficulty Rogue Special Mode None Game No. 31 Rogue 31 Adventurer 0 Explorer 0 Win Type - Total 0 Types 0/0/0/0/0/0/0/0/0 Lore% 11 Gallery% 13 Achievement% 12 Wizard Run 0 Options --------- Layout 1 ASCII 1 Keyboard 0 Movement Arrows Keybinds 0 Fullscreen 1 Font 18/SmallcapsGlow Map View 50x40 Zoom Use 0% Tactical HUD 0 Map Filters NONE Filters NONE Steam 1 RUN: ce74c1ac-d5d0-4502-b2ba-648955316fcd